[Event "*** Titled Tuesday Blitz"]
[Site "Chess.com"]
[Date "2020.05.19"]
[Round "4"]
[White "ameetghasi100"]
[Black "lolo9292"]
[Result "0-1"]
[WhiteElo "2706"]
[BlackElo "2520"]
[TimeControl "180+1"]
[EndTime "12:41:22 PDT"]
[Termination "lolo9292 won on time"]

1. b3 {[%clk 0:03:00.9]} 1... e5 {[%clk 0:02:59.7]} 2. Bb2 {[%clk 0:03:00.7]}
2... Nc6 {[%clk 0:03:00.6]} 3. e3 {[%clk 0:03:01.1]} 3... d5 {[%clk 0:03:00.9]}
4. a3 {[%clk 0:03:00.7]} 4... Bd6 {[%clk 0:03:00.9]} 5. d3 {[%clk 0:02:55.4]}
5... f5 {[%clk 0:02:59.9]} 6. c4 {[%clk 0:02:54.8]} 6... dxc4 {[%clk 0:02:58.5]}
7. bxc4 {[%clk 0:02:54]} 7... Nf6 {[%clk 0:02:58]} 8. Qb3 {[%clk 0:02:44.7]}
8... Be6 {[%clk 0:02:52.1]} 9. Nf3 {[%clk 0:02:37.7]} 9... O-O {[%clk
0:02:50.7]} 10. Ng5 {[%clk 0:02:36.9]} 10... Qd7 {[%clk 0:02:45.2]} 11. Nd2
{[%clk 0:02:25]} 11... Kh8 {[%clk 0:02:44.5]} 12. Nxe6 {[%clk 0:02:23.4]} 12...
Qxe6 {[%clk 0:02:45.4]} 13. c5 {[%clk 0:02:21.2]} 13... Qxb3 {[%clk 0:02:46.3]}
14. Nxb3 {[%clk 0:02:21.2]} 14... Be7 {[%clk 0:02:47]} 15. Be2 {[%clk
0:02:19.4]} 15... Rfd8 {[%clk 0:02:46.6]} 16. O-O {[%clk 0:02:18.3]} 16... a5
{[%clk 0:02:47]} 17. a4 {[%clk 0:01:59.5]} 17... Nd5 {[%clk 0:02:42]} 18. Rfd1
{[%clk 0:01:58.4]} 18... Ndb4 {[%clk 0:02:41]} 19. Bc3 {[%clk 0:01:50.9]} 19...
Nd5 {[%clk 0:02:22.7]} 20. Bb2 {[%clk 0:01:48.1]} 20... Bf6 {[%clk 0:02:22.4]}
21. Rd2 {[%clk 0:01:35]} 21... Ndb4 {[%clk 0:02:21.8]} 22. Rad1 {[%clk
0:01:27.9]} 22... Rd7 {[%clk 0:02:16.3]} 23. g3 {[%clk 0:01:25.1]} 23... Rad8
{[%clk 0:02:16.1]} 24. Kg2 {[%clk 0:01:24.2]} 24... h6 {[%clk 0:02:12.8]} 25. h4
{[%clk 0:01:23.1]} 25... b6 {[%clk 0:02:06.9]} 26. h5 {[%clk 0:01:19]} 26... Bg5
{[%clk 0:02:03.8]} 27. f4 {[%clk 0:00:50.3]} 27... Bf6 {[%clk 0:01:59.8]} 28.
fxe5 {[%clk 0:00:48.4]} 28... Nxe5 {[%clk 0:02:00.1]} 29. d4 {[%clk 0:00:48.2]}
29... Nf7 {[%clk 0:01:55.9]} 30. Bc4 {[%clk 0:00:41]} 30... Ng5 {[%clk
0:01:54.6]} 31. Rf2 {[%clk 0:00:36.8]} 31... Re7 {[%clk 0:01:52.6]} 32. Bc1
{[%clk 0:00:34.7]} 32... Ne4 {[%clk 0:01:46.1]} 33. Rxf5 {[%clk 0:00:34.6]}
33... bxc5 {[%clk 0:01:33.1]} 34. Nxc5 {[%clk 0:00:33.9]} 34... Nd6 {[%clk
0:01:33]} 35. Rxf6 {[%clk 0:00:26.2]} 35... gxf6 {[%clk 0:01:24]} 36. Be6 {[%clk
0:00:26]} 36... Ne4 {[%clk 0:01:16.5]} 37. Nxe4 {[%clk 0:00:15.3]} 37... Rxe6
{[%clk 0:01:15.9]} 38. Nc5 {[%clk 0:00:15.8]} 38... Rc6 {[%clk 0:01:15.2]} 39.
Rf1 {[%clk 0:00:15.2]} 39... Kg7 {[%clk 0:01:11.7]} 40. Bb2 {[%clk 0:00:12.5]}
40... Nd5 {[%clk 0:01:10.6]} 41. Bc1 {[%clk 0:00:11.9]} 41... Rb8 {[%clk
0:01:08.2]} 42. e4 {[%clk 0:00:11.9]} 42... Nc3 {[%clk 0:01:06.1]} 43. Bf4
{[%clk 0:00:11.5]} 43... Rb2+ {[%clk 0:01:05.2]} 44. Kh3 {[%clk 0:00:11.6]}
44... Ne2 {[%clk 0:00:59.8]} 45. Bxc7 {[%clk 0:00:11.6]} 45... Nxd4 {[%clk
0:00:55.6]} 46. Nd3 {[%clk 0:00:11.8]} 46... Rb3 {[%clk 0:00:49.1]} 47. Nf4
{[%clk 0:00:06.3]} 47... Rxc7 {[%clk 0:00:48.5]} 48. Rd1 {[%clk 0:00:07.2]}
48... Rc4 {[%clk 0:00:44]} 49. Rxd4 {[%clk 0:00:06.2]} 49... Rxd4 {[%clk
0:00:44.9]} 50. Ne6+ {[%clk 0:00:06.8]} 50... Kf7 {[%clk 0:00:45.4]} 51. Nxd4
{[%clk 0:00:07.7]} 51... Rb4 {[%clk 0:00:45.6]} 52. Nf5 {[%clk 0:00:08.2]} 52...
Rxa4 {[%clk 0:00:45.9]} 53. Nxh6+ {[%clk 0:00:08.8]} 53... Kf8 {[%clk
0:00:45.5]} 54. Nf5 {[%clk 0:00:09.7]} 54... Ra1 {[%clk 0:00:41]} 55. h6 {[%clk
0:00:06.6]} 55... Rh1+ {[%clk 0:00:41.1]} 56. Kg2 {[%clk 0:00:06.7]} 56... Rh5
{[%clk 0:00:38.1]} 57. g4 {[%clk 0:00:06.1]} 57... Rxf5 {[%clk 0:00:37]} 58.
exf5 {[%clk 0:00:06.1]} 58... a4 {[%clk 0:00:37.5]} 59. g5 {[%clk 0:00:04.3]}
59... a3 {[%clk 0:00:34.4]} 60. h7 {[%clk 0:00:04.9]} 60... Kg7 {[%clk 0:00:32]}
61. gxf6+ {[%clk 0:00:05.8]} 61... Kxh7 {[%clk 0:00:32.3]} 62. f7 {[%clk
0:00:05.7]} 62... Kg7 {[%clk 0:00:33.2]} 0-1

[Event "*** Titled Tuesday Blitz"]
[Site "Chess.com"]
[Date "2020.05.19"]
[Round "4"]
[White "51616516516"]
[Black "Konovalova_Vera"]
[Result "0-1"]
[WhiteElo "2325"]
[BlackElo "2157"]
[TimeControl "180+1"]
[EndTime "12:41:24 PDT"]
[Termination "Konovalova_Vera won on time"]

1. c4 {[%clk 0:03:00.9]} 1... c6 {[%clk 0:02:59.1]} 2. d4 {[%clk 0:03:00.2]}
2... d5 {[%clk 0:02:59.2]} 3. Nf3 {[%clk 0:03:00.8]} 3... Nf6 {[%clk 0:02:58.2]}
4. Nc3 {[%clk 0:03:01.3]} 4... g6 {[%clk 0:02:57.6]} 5. cxd5 {[%clk 0:02:59.4]}
5... cxd5 {[%clk 0:02:56.8]} 6. Bf4 {[%clk 0:02:59.1]} 6... Bg7 {[%clk
0:02:52.2]} 7. e3 {[%clk 0:02:56.6]} 7... O-O {[%clk 0:02:47.2]} 8. Bd3 {[%clk
0:02:56.8]} 8... Nc6 {[%clk 0:02:46.3]} 9. O-O {[%clk 0:02:56.2]} 9... Bg4
{[%clk 0:02:45.7]} 10. a3 {[%clk 0:02:52.8]} 10... Rc8 {[%clk 0:02:43.5]} 11. h3
{[%clk 0:02:41.7]} 11... Bf5 {[%clk 0:02:35.3]} 12. Bxf5 {[%clk 0:02:36.2]}
12... gxf5 {[%clk 0:02:35.2]} 13. Qd3 {[%clk 0:02:28.7]} 13... Ne4 {[%clk
0:02:33.7]} 14. Rfc1 {[%clk 0:02:19.6]} 14... Na5 {[%clk 0:02:26.3]} 15. Na4
{[%clk 0:02:05.1]} 15... Qd7 {[%clk 0:02:13.2]} 16. Qd1 {[%clk 0:01:28.9]} 16...
Qb5 {[%clk 0:02:04.3]} 17. b4 {[%clk 0:01:15.6]} 17... Nc4 {[%clk 0:02:01.8]}
18. Nc3 {[%clk 0:01:03.1]} 18... Nxc3 {[%clk 0:01:56.5]} 19. Rxc3 {[%clk
0:01:01.8]} 19... Qd7 {[%clk 0:01:47]} 20. Rac1 {[%clk 0:00:58.4]} 20... h6
{[%clk 0:01:43]} 21. Qd3 {[%clk 0:00:44.8]} 21... b5 {[%clk 0:01:40.9]} 22. Qe2
{[%clk 0:00:29]} 22... Qe6 {[%clk 0:01:38.3]} 23. Ne1 {[%clk 0:00:28.1]} 23...
Bxd4 {[%clk 0:01:33.1]} 24. Rb3 {[%clk 0:00:20.7]} 24... Bg7 {[%clk 0:01:30.7]}
25. Nd3 {[%clk 0:00:20.3]} 25... d4 {[%clk 0:01:24.7]} 26. Nc5 {[%clk
0:00:19.9]} 26... Qd5 {[%clk 0:01:22.2]} 27. exd4 {[%clk 0:00:19.7]} 27... Qxd4
{[%clk 0:01:13.3]} 28. Be3 {[%clk 0:00:12.5]} 28... Qd5 {[%clk 0:01:04.7]} 29.
Rd1 {[%clk 0:00:08.9]} 29... Qc6 {[%clk 0:01:02.3]} 30. Bd4 {[%clk 0:00:08.8]}
30... e5 {[%clk 0:00:57.9]} 31. Ba1 {[%clk 0:00:07.9]} 31... Rcd8 {[%clk
0:00:53]} 32. Rg3 {[%clk 0:00:07.2]} 32... Rxd1+ {[%clk 0:00:47.3]} 33. Qxd1
{[%clk 0:00:08.1]} 33... Kh7 {[%clk 0:00:39.3]} 34. Qh5 {[%clk 0:00:06.5]} 34...
Nd6 {[%clk 0:00:26.4]} 35. Kh2 {[%clk 0:00:03.1]} 35... Qd5 {[%clk 0:00:20.2]}
36. Nd3 {[%clk 0:00:01.6]} 36... Qe6 {[%clk 0:00:18.7]} 37. Rxg7+ {[%clk
0:00:01.9]} 37... Kxg7 {[%clk 0:00:18]} 38. Bxe5+ {[%clk 0:00:02.8]} 38... Kh7
{[%clk 0:00:18.1]} 39. Bc3 {[%clk 0:00:01.7]} 39... Rg8 {[%clk 0:00:17.5]} 40.
Nf4 {[%clk 0:00:01.9]} 40... Qe4 {[%clk 0:00:12.8]} 41. Qh4 {[%clk 0:00:02.8]}
41... Rg6 {[%clk 0:00:12.5]} 42. Nxg6 {[%clk 0:00:02.1]} 42... Kxg6 {[%clk
0:00:08.6]} 43. Qd8 {[%clk 0:00:03]} 43... Qf4+ {[%clk 0:00:06.5]} 44. Kh1
{[%clk 0:00:01.5]} 44... Ne4 {[%clk 0:00:06.3]} 45. g3 {[%clk 0:00:01.3]} 45...
Qf3+ {[%clk 0:00:05.9]} 0-1

[Event "*** Titled Tuesday Blitz"]
[Site "Chess.com"]
[Date "2020.05.19"]
[Round "4"]
[White "Mizner"]
[Black "ZverevLev"]
[Result "1-0"]
[WhiteElo "2554"]
[BlackElo "2168"]
[TimeControl "180+1"]
[EndTime "12:41:26 PDT"]
[Termination "Mizner won on time"]

1. d4 {[%clk 0:03:00.9]} 1... Nf6 {[%clk 0:02:56.8]} 2. c4 {[%clk 0:03:00.8]}
2... e6 {[%clk 0:02:56.4]} 3. Nc3 {[%clk 0:02:59.7]} 3... Bb4 {[%clk 0:02:55]}
4. Qc2 {[%clk 0:02:59.7]} 4... Bxc3+ {[%clk 0:02:48.3]} 5. Qxc3 {[%clk
0:02:59.3]} 5... O-O {[%clk 0:02:46.7]} 6. g3 {[%clk 0:02:36.8]} 6... d5 {[%clk
0:02:44.6]} 7. Bg2 {[%clk 0:02:35.5]} 7... c5 {[%clk 0:02:43.3]} 8. Nf3 {[%clk
0:02:31.8]} 8... cxd4 {[%clk 0:02:41.6]} 9. Qxd4 {[%clk 0:02:14.3]} 9... Nc6
{[%clk 0:02:39.5]} 10. Qh4 {[%clk 0:02:14]} 10... h6 {[%clk 0:02:33.5]} 11. O-O
{[%clk 0:02:11]} 11... dxc4 {[%clk 0:02:32.2]} 12. Qxc4 {[%clk 0:02:02.9]} 12...
e5 {[%clk 0:02:31.5]} 13. Be3 {[%clk 0:01:58.4]} 13... Be6 {[%clk 0:02:27.1]}
14. Qb5 {[%clk 0:01:54.8]} 14... Qc7 {[%clk 0:02:22]} 15. Rfc1 {[%clk
0:01:42.2]} 15... Nd5 {[%clk 0:02:20.8]} 16. Bc5 {[%clk 0:01:21.3]} 16... Rfc8
{[%clk 0:02:13.9]} 17. Qa4 {[%clk 0:01:04.3]} 17... Qd7 {[%clk 0:02:05.9]} 18.
Rd1 {[%clk 0:00:59.4]} 18... Qc7 {[%clk 0:01:29.9]} 19. Rac1 {[%clk 0:00:58.7]}
19... Qb8 {[%clk 0:01:25.5]} 20. Qa3 {[%clk 0:00:56.1]} 20... Rd8 {[%clk
0:01:20.1]} 21. b4 {[%clk 0:00:52.1]} 21... a6 {[%clk 0:01:10.1]} 22. Qb2 {[%clk
0:00:39.2]} 22... b6 {[%clk 0:01:05.1]} 23. Bf8 {[%clk 0:00:25]} 23... Kxf8
{[%clk 0:00:49.8]} 24. Rxc6 {[%clk 0:00:24.3]} 24... Ne7 {[%clk 0:00:34]} 25.
Rcc1 {[%clk 0:00:20.7]} 25... f6 {[%clk 0:00:30.6]} 26. Nd2 {[%clk 0:00:18.8]}
26... Ra7 {[%clk 0:00:29.3]} 27. Ne4 {[%clk 0:00:18.8]} 27... Rad7 {[%clk
0:00:24]} 28. Rxd7 {[%clk 0:00:18.2]} 28... Rxd7 {[%clk 0:00:24.9]} 29. a4
{[%clk 0:00:18.1]} 29... Qd8 {[%clk 0:00:23.3]} 30. h3 {[%clk 0:00:15.4]} 30...
Rd1+ {[%clk 0:00:19.7]} 31. Kh2 {[%clk 0:00:15.7]} 31... Rxc1 {[%clk 0:00:18.6]}
32. Qxc1 {[%clk 0:00:16.6]} 32... Kf7 {[%clk 0:00:19.3]} 33. a5 {[%clk
0:00:16.8]} 33... bxa5 {[%clk 0:00:18.3]} 34. bxa5 {[%clk 0:00:17.7]} 34... Bd5
{[%clk 0:00:18.2]} 35. Qc5 {[%clk 0:00:15.6]} 35... Qa8 {[%clk 0:00:16.7]} 36.
Nd6+ {[%clk 0:00:14.7]} 36... Ke6 {[%clk 0:00:15.5]} 37. e4 {[%clk 0:00:14.8]}
37... Bc6 {[%clk 0:00:14.3]} 38. h4 {[%clk 0:00:14.8]} 38... Kd7 {[%clk
0:00:12.2]} 39. Bh3+ {[%clk 0:00:14.5]} 39... Kd8 {[%clk 0:00:11.2]} 40. Nc4
{[%clk 0:00:13.9]} 40... Qb8 {[%clk 0:00:08.2]} 41. Nb6 {[%clk 0:00:13.2]} 41...
Qc7 {[%clk 0:00:08]} 42. Qc4 {[%clk 0:00:12.3]} 42... Qd6 {[%clk 0:00:04.4]} 43.
Qxa6 {[%clk 0:00:10.8]} 43... Qd2 {[%clk 0:00:02.6]} 44. Qf1 {[%clk 0:00:07.9]}
44... Qb2 {[%clk 0:00:01.8]} 45. Nc4 {[%clk 0:00:05.6]} 45... Qa2 {[%clk
0:00:02.7]} 46. Qd1+ {[%clk 0:00:05]} 1-0

[Event "*** Titled Tuesday Blitz"]
[Site "Chess.com"]
[Date "2020.05.19"]
[Round "4"]
[White "Kezin_Roman"]
[Black "GregShahade"]
[Result "1-0"]
[WhiteElo "2748"]
[BlackElo "2503"]
[TimeControl "180+1"]
[EndTime "12:41:27 PDT"]
[Termination "Kezin_Roman won by checkmate"]

1. d4 {[%clk 0:03:00.7]} 1... Nf6 {[%clk 0:02:59.6]} 2. c4 {[%clk 0:03:00.9]}
2... g6 {[%clk 0:02:59.6]} 3. Nc3 {[%clk 0:03:01.2]} 3... d5 {[%clk 0:02:59.8]}
4. cxd5 {[%clk 0:03:01.3]} 4... Nxd5 {[%clk 0:03:00.7]} 5. e4 {[%clk 0:03:02.1]}
5... Nxc3 {[%clk 0:03:01.1]} 6. bxc3 {[%clk 0:03:03]} 6... Bg7 {[%clk
0:02:59.4]} 7. Nf3 {[%clk 0:03:03.2]} 7... c5 {[%clk 0:02:58.2]} 8. Be3 {[%clk
0:03:03.8]} 8... Qa5 {[%clk 0:02:56.6]} 9. Qd2 {[%clk 0:03:04.4]} 9... Nc6
{[%clk 0:02:48.7]} 10. Rb1 {[%clk 0:03:04.5]} 10... a6 {[%clk 0:02:48.7]} 11.
Rc1 {[%clk 0:03:04]} 11... cxd4 {[%clk 0:02:46.1]} 12. cxd4 {[%clk 0:03:04.3]}
12... Qxd2+ {[%clk 0:02:46.2]} 13. Kxd2 {[%clk 0:03:02.6]} 13... O-O {[%clk
0:02:44]} 14. d5 {[%clk 0:03:02.6]} 14... Ne5 {[%clk 0:02:37.3]} 15. Nxe5 {[%clk
0:03:01.9]} 15... Bxe5 {[%clk 0:02:37]} 16. f4 {[%clk 0:02:54.6]} 16... Bb8
{[%clk 0:02:27.6]} 17. e5 {[%clk 0:02:22.2]} 17... Bd7 {[%clk 0:02:13]} 18. Bd3
{[%clk 0:02:15.8]} 18... f6 {[%clk 0:01:51.2]} 19. e6 {[%clk 0:01:40.2]} 19...
Bb5 {[%clk 0:01:50]} 20. Rhd1 {[%clk 0:01:08.4]} 20... Bd6 {[%clk 0:01:44.2]}
21. g3 {[%clk 0:01:04.2]} 21... Rfc8 {[%clk 0:01:39]} 22. Rxc8+ {[%clk
0:00:47.6]} 22... Rxc8 {[%clk 0:01:38.5]} 23. Bxb5 {[%clk 0:00:48.5]} 23... axb5
{[%clk 0:01:38.3]} 24. Rc1 {[%clk 0:00:48.6]} 24... Ra8 {[%clk 0:00:50.2]} 25.
Bc5 {[%clk 0:00:47]} 25... Rxa2+ {[%clk 0:00:44.3]} 26. Kd3 {[%clk 0:00:47.3]}
26... Ra6 {[%clk 0:00:16.2]} 27. Bxd6 {[%clk 0:00:44.4]} 27... Rxd6 {[%clk
0:00:17.1]} 28. Kd4 {[%clk 0:00:44.2]} 28... Rd8 {[%clk 0:00:10.2]} 29. Rc7
{[%clk 0:00:37.1]} 29... Kf8 {[%clk 0:00:10.4]} 30. Rxb7 {[%clk 0:00:37.5]}
30... Ra8 {[%clk 0:00:10.8]} 31. Rxb5 {[%clk 0:00:36.5]} 31... h5 {[%clk
0:00:08.7]} 32. Rb7 {[%clk 0:00:30.1]} 32... Rd8 {[%clk 0:00:08.7]} 33. Rc7
{[%clk 0:00:23.2]} 33... Ke8 {[%clk 0:00:09]} 34. Kc5 {[%clk 0:00:23.2]} 34...
Kf8 {[%clk 0:00:09.4]} 35. Kc6 {[%clk 0:00:21.6]} 35... Rd6+ {[%clk 0:00:09.5]}
36. Kc5 {[%clk 0:00:18.5]} 36... Rd8 {[%clk 0:00:09.5]} 37. Rd7 {[%clk
0:00:13.5]} 37... Rc8+ {[%clk 0:00:08.4]} 38. Kb6 {[%clk 0:00:14.1]} 38... Ke8
{[%clk 0:00:08.7]} 39. Rc7 {[%clk 0:00:10.8]} 39... Rb8+ {[%clk 0:00:07.7]} 40.
Kc6 {[%clk 0:00:10.7]} 40... Rd8 {[%clk 0:00:08.3]} 41. Rd7 {[%clk 0:00:08.6]}
41... Rxd7 {[%clk 0:00:05.9]} 42. exd7+ {[%clk 0:00:08.1]} 42... Kd8 {[%clk
0:00:06.5]} 43. h3 {[%clk 0:00:05.1]} 43... g5 {[%clk 0:00:07]} 44. f5 {[%clk
0:00:03.7]} 44... g4 {[%clk 0:00:06.2]} 45. h4 {[%clk 0:00:04.3]} 45... e5
{[%clk 0:00:06.6]} 46. dxe6 {[%clk 0:00:05]} 46... Ke7 {[%clk 0:00:07]} 47. Kc7
{[%clk 0:00:05.6]} 47... Kf8 {[%clk 0:00:07.6]} 48. d8=Q+ {[%clk 0:00:06.4]}
48... Kg7 {[%clk 0:00:08]} 49. e7 {[%clk 0:00:06.3]} 49... Kh6 {[%clk
0:00:08.9]} 50. e8=Q {[%clk 0:00:06.6]} 50... Kg7 {[%clk 0:00:09.8]} 51. Qg6#
{[%clk 0:00:07.2]} 1-0

[Event "*** Titled Tuesday Blitz"]
[Site "Chess.com"]
[Date "2020.05.19"]
[Round "4"]
[White "lupta_robin"]
[Black "chessablanca"]
[Result "1-0"]
[WhiteElo "2624"]
[BlackElo "2459"]
[TimeControl "180+1"]
[EndTime "12:41:32 PDT"]
[Termination "lupta_robin won by checkmate"]

1. e4 {[%clk 0:03:00.9]} 1... e5 {[%clk 0:02:59.7]} 2. Nf3 {[%clk 0:03:00.2]}
2... Nc6 {[%clk 0:03:00.3]} 3. d4 {[%clk 0:03:00.4]} 3... exd4 {[%clk
0:03:00.2]} 4. Nxd4 {[%clk 0:03:00.3]} 4... Nf6 {[%clk 0:03:00.6]} 5. Nxc6
{[%clk 0:02:57.6]} 5... bxc6 {[%clk 0:03:00.5]} 6. e5 {[%clk 0:02:57.2]} 6...
Qe7 {[%clk 0:03:00.5]} 7. Qe2 {[%clk 0:02:57.6]} 7... Nd5 {[%clk 0:03:00.7]} 8.
c4 {[%clk 0:02:57.2]} 8... Nb6 {[%clk 0:03:01]} 9. Nc3 {[%clk 0:02:57.1]} 9...
d6 {[%clk 0:03:01.3]} 10. Bf4 {[%clk 0:02:41.5]} 10... Be6 {[%clk 0:02:24.8]}
11. b3 {[%clk 0:02:15.5]} 11... d5 {[%clk 0:02:15]} 12. cxd5 {[%clk 0:01:59.3]}
12... cxd5 {[%clk 0:02:15.9]} 13. O-O-O {[%clk 0:01:35.6]} 13... c6 {[%clk
0:02:08]} 14. Qd2 {[%clk 0:01:11.6]} 14... a5 {[%clk 0:01:44.6]} 15. Be3 {[%clk
0:01:09.5]} 15... Nd7 {[%clk 0:01:42.6]} 16. Na4 {[%clk 0:01:04.6]} 16... Nxe5
{[%clk 0:01:30.1]} 17. f4 {[%clk 0:00:56.7]} 17... Ng4 {[%clk 0:01:16.5]} 18.
Bd4 {[%clk 0:00:50.4]} 18... Nf6 {[%clk 0:01:05.7]} 19. Bd3 {[%clk 0:00:43.9]}
19... Ne4 {[%clk 0:00:53.2]} 20. Qc2 {[%clk 0:00:28]} 20... Rc8 {[%clk
0:00:36.3]} 21. Rhe1 {[%clk 0:00:27.7]} 21... f5 {[%clk 0:00:35.9]} 22. g4
{[%clk 0:00:26.3]} 22... Qf7 {[%clk 0:00:33.8]} 23. Kb1 {[%clk 0:00:13.7]} 23...
Bb4 {[%clk 0:00:31.9]} 24. Re2 {[%clk 0:00:12.6]} 24... O-O {[%clk 0:00:30.8]}
25. g5 {[%clk 0:00:11.9]} 25... c5 {[%clk 0:00:27]} 26. Be5 {[%clk 0:00:12.2]}
26... c4 {[%clk 0:00:25.8]} 27. Bxe4 {[%clk 0:00:11.5]} 27... dxe4 {[%clk
0:00:24.1]} 28. Qb2 {[%clk 0:00:07.5]} 28... cxb3 {[%clk 0:00:22.8]} 29. a3
{[%clk 0:00:08]} 29... Be7 {[%clk 0:00:20.4]} 30. Nb6 {[%clk 0:00:07.3]} 30...
Rc6 {[%clk 0:00:20.1]} 31. Nd7 {[%clk 0:00:07.1]} 31... Rd8 {[%clk 0:00:19.5]}
32. Red2 {[%clk 0:00:07.7]} 32... Bc4 {[%clk 0:00:16.5]} 33. Nf6+ {[%clk
0:00:07.6]} 33... Bxf6 {[%clk 0:00:16.2]} 34. Rxd8+ {[%clk 0:00:08.2]} 34...
Bxd8 {[%clk 0:00:12.2]} 35. Rxd8+ {[%clk 0:00:08.6]} 35... Qf8 {[%clk
0:00:13.1]} 36. Rxf8+ {[%clk 0:00:08.5]} 36... Kxf8 {[%clk 0:00:14]} 37. Bxg7+
{[%clk 0:00:07.9]} 37... Kf7 {[%clk 0:00:14.5]} 38. Qe5 {[%clk 0:00:08]} 38...
a4 {[%clk 0:00:13]} 39. Kb2 {[%clk 0:00:07.1]} 39... Be6 {[%clk 0:00:12.7]} 40.
Qf6+ {[%clk 0:00:06.9]} 40... Ke8 {[%clk 0:00:12.1]} 41. Qf8+ {[%clk 0:00:07.3]}
41... Kd7 {[%clk 0:00:12.7]} 42. Bc3 {[%clk 0:00:07.8]} 42... Rd6 {[%clk
0:00:12.7]} 43. Qg7+ {[%clk 0:00:07.9]} 43... Kc6 {[%clk 0:00:13]} 44. Bd4
{[%clk 0:00:07.9]} 44... Kb5 {[%clk 0:00:12.6]} 45. Qe5+ {[%clk 0:00:08.3]}
45... Rd5 {[%clk 0:00:11.8]} 46. Qxe6 {[%clk 0:00:08.1]} 46... Rxd4 {[%clk
0:00:12.7]} 47. Qxf5+ {[%clk 0:00:08]} 47... Kc4 {[%clk 0:00:12.9]} 48. Qe6+
{[%clk 0:00:08.4]} 48... Kd3 {[%clk 0:00:13.1]} 49. f5 {[%clk 0:00:07.8]} 49...
Ke3 {[%clk 0:00:12.1]} 50. f6 {[%clk 0:00:07.4]} 50... Rd2+ {[%clk 0:00:12.7]}
51. Kb1 {[%clk 0:00:07.5]} 51... Rd1+ {[%clk 0:00:12.8]} 52. Kb2 {[%clk
0:00:07.9]} 52... Rd2+ {[%clk 0:00:13.4]} 53. Kc3 {[%clk 0:00:07.7]} 53... Rc2+
{[%clk 0:00:13.7]} 54. Kb4 {[%clk 0:00:07]} 54... b2 {[%clk 0:00:14.1]} 55. Qa2
{[%clk 0:00:04.8]} 55... Kd2 {[%clk 0:00:14.5]} 56. f7 {[%clk 0:00:04.6]} 56...
e3 {[%clk 0:00:14.1]} 57. f8=Q {[%clk 0:00:03.7]} 57... Kc1 {[%clk 0:00:14.4]}
58. Qd6 {[%clk 0:00:03.9]} 58... b1=Q+ {[%clk 0:00:14.2]} 59. Qxb1+ {[%clk
0:00:04.5]} 59... Kxb1 {[%clk 0:00:15.1]} 60. Qe5 {[%clk 0:00:04.8]} 60... e2
{[%clk 0:00:15.5]} 61. Qe4 {[%clk 0:00:04.5]} 61... Kc1 {[%clk 0:00:15.9]} 62.
h4 {[%clk 0:00:04.5]} 62... Kd1 {[%clk 0:00:16.3]} 63. Qd3+ {[%clk 0:00:04.9]}
63... Rd2 {[%clk 0:00:16.6]} 64. Qb1# {[%clk 0:00:05.1]} 1-0